bitfinex-derivatives/quotes_ETHF0:USTF0_20260125
["timestamp","ask_amount","ask_price","bid_price","bid_amount"]
[1769356978307,0.18954702,2918.6,2916.3,2.18569]
[1769356978514,0.18954702,2918.6,2916.6,0.17167]
[1769356978907,0.18954702,2918.6,2916.1,3.434]
[1769356979209,0.18954702,2918.5,2916.1,3.434]
[1769356979604,0.18954702,2918.5,2915.8,0.00328532]
[1769356979802,0.0025898,2918.9,2913.5,10.25056335]
[1769356979803,0.18954702,2916.8,2913.5,10.25056335]
[1769356980006,0.18954702,2916.8,2913.6,0.18631314]
[1769356980204,0.18954702,2916.8,2913.5,10.50309755]
[1769356980205,0.18954702,2916.8,2914.6,0.17179]
[1769356980806,0.19233982,2916.8,2914.6,0.00385824]
[1769356981011,0.18954702,2916.6,2914.6,0.00385824]
[1769356981208,0.18954702,2916.4,2914.6,0.00385824]
[1769356981408,0.18954702,2916.0,2914.6,0.00385824]
[1769356982413,0.17173,2915.7,2914.6,0.00385824]
[1769356982622,0.18954702,2915.5,2913.0,0.17189]
[1769356982915,0.18954702,2915.5,2912.9,2.013]
[1769356983111,0.18954702,2915.5,2913.7,0.17184]
[1769356983312,0.1717,2916.3,2913.7,0.17184]
[1769356983617,0.23883,2916.2,2913.7,0.1757625]
[1769356983920,0.2416228,2916.8,2914.4,0.1718]
[1769356984217,0.23883,2916.6,2914.5,0.1718]
[1769356984516,0.23883,2916.6,2913.7,0.2554007]
[1769356984716,0.23883,2916.3,2913.7,0.0039225]
[1769356984910,0.23883,2916.3,2913.7,0.1757725]
[1769356985213,0.23883,2916.3,2914.1,0.17182]
[1769356985818,0.0027928,2916.8,2914.3,0.2514782]
[1769356986119,0.0027928,2916.8,2915.3,0.2514782]
[1769356986311,0.0027928,2916.8,2915.5,0.17174]
[1769356986717,0.23883,2917.6,2915.7,0.17173]
[1769356986904,0.23883,2917.6,2914.6,2.014]
[1769356986905,0.23883,2918.3,2915.8,0.2514782]
[1769356987109,0.23883,2918.3,2916.3,0.17169]
[1769356987316,0.23883,2919.1,2916.4,0.17169]
[1769356987518,0.23883,2919.0,2916.4,0.17169]
[1769356987707,0.23883,2918.9,2916.4,0.17444227]
[1769356988311,0.23883,2918.7,2916.4,0.17444227]
[1769356988708,0.23883,2918.4,2916.4,0.00275227]
[1769356988912,0.00331543,2919.0,2916.4,0.00275227]
[1769356989115,0.23883,2918.8,2916.4,0.17444227]
[1769356989316,0.23883,2918.8,2916.5,0.17168]
[1769356989618,0.23883,2918.8,2916.4,0.00275227]
[1769356989824,0.23883,2918.7,2916.4,0.00275227]
[1769356990126,0.23883,2918.7,2916.4,0.17443227]
[1769356990619,0.23883,2918.7,2916.5,0.17168]
[1769356990812,0.23883,2918.7,2916.4,0.00275227]
[1769356991017,0.23883,2918.7,2916.7,0.17167]
[1769356991216,0.00331543,2919.0,2917.6,0.17161]
[1769356991422,0.00331543,2919.0,2917.8,0.17161]
[1769356992426,0.24214543,2919.0,2917.0,0.17165]
[1769356992817,0.24214543,2919.0,2916.5,2.013]
[1769356993123,0.24214543,2919.0,2916.6,0.2514782]
[1769356994516,0.24214543,2919.0,2916.5,2.013]
[1769356994725,0.23883,2918.9,2916.5,2.013]
[1769356994918,0.23883,2918.9,2916.6,0.17167]
[1769356995115,0.27004574,2918.8,2916.6,0.17167]
[1769356996118,0.27004574,2918.7,2916.6,0.17167]
[1769356997027,0.00331543,2919.0,2916.8,0.17166]
[1769356997225,0.27336117,2919.0,2916.8,0.17166]
[1769356998716,0.27336117,2919.0,2917.1,0.17165]
[1769356999125,0.27336117,2919.0,2916.4,0.00275227]
[1769356999126,0.27004574,2918.6,2916.4,0.17444227]
[1769356999329,0.27004574,2918.5,2916.4,0.00275227]
[1769356999519,0.27004574,2917.9,2916.4,0.00275227]
[1769356999725,0.44164574,2917.9,2916.4,0.00275227]
[1769356999920,0.44165574,2917.8,2916.4,0.00275227]
[1769357000124,0.27004574,2917.5,2916.4,0.00275227]
[1769357000729,0.27004574,2917.5,2915.3,0.17175]
[1769357001222,0.27004574,2917.5,2915.7,0.17173]
[1769357001829,0.27004574,2917.5,2915.7,0.17426441]
[1769357002034,0.27004574,2917.5,2915.8,0.17172]
[1769357002529,0.44163574,2918.1,2915.9,0.17171]
[1769357002729,0.44163574,2918.1,2915.7,0.00253441]
[1769357002730,0.27004574,2918.1,2916.0,0.17171]
[1769357003134,0.27004574,2918.1,2916.1,0.1717]
[1769357003325,0.00331543,2919.0,2915.7,0.00253441]
[1769357003326,0.27004574,2917.9,2915.7,0.00253441]
[1769357003525,0.27004574,2917.7,2915.7,0.00253441]
[1769357003925,0.27004574,2917.7,2915.7,0.17426441]
[1769357004334,0.27004574,2917.4,2915.7,0.00253441]
[1769357004627,0.00331543,2919.0,2915.7,0.00253441]
[1769357004628,0.27004574,2917.1,2915.7,0.00253441]
[1769357004832,0.27004574,2916.8,2914.6,3.432]
[1769357005033,0.27004574,2916.8,2914.6,3.60379]
[1769357005240,0.27004574,2916.6,2914.6,3.60379]
[1769357005428,0.27004574,2916.4,2913.9,0.17183]
[1769357005928,0.27361911,2916.4,2913.9,0.17619459]
[1769357006132,0.27361911,2916.4,2914.3,0.17181]
[1769357006328,0.27361911,2916.4,2913.9,0.00436459]
[1769357006529,0.27004574,2916.2,2913.9,0.00436459]
[1769357006735,0.27004574,2916.2,2914.1,0.17182]
[1769357007329,0.00357337,2916.4,2914.4,0.1718]
[1769357007731,0.00357337,2916.4,2914.5,0.1718]
[1769357008034,0.00357337,2916.4,2915.3,0.17175]
[1769357008236,0.27004574,2917.5,2915.3,0.17175]
[1769357009229,0.27291988,2917.5,2915.3,0.17175]
[1769357009832,0.27004574,2917.1,2914.6,3.70213263]
[1769357010038,0.27004574,2916.8,2914.6,3.433]
[1769357010839,0.27004574,2916.4,2914.6,3.433]
[1769357011029,0.27004574,2916.4,2913.9,0.00436459]
[1769357011633,0.27004574,2915.5,2913.9,0.00436459]
[1769357011834,0.17178,2914.9,2912.3,0.17192]
[1769357012032,0.27004574,2914.7,2912.3,0.17192]
[1769357012336,0.27004574,2914.6,2912.3,0.17192]
[1769357012536,0.27004574,2914.5,2912.3,0.17192]
[1769357012834,0.27427231,2914.5,2912.3,0.17482282]
[1769357013427,0.27427231,2914.5,2912.4,0.17192]
[1769357013635,0.27427231,2914.5,2912.3,0.00290282]
[1769357013636,0.27427231,2914.5,2912.7,0.1719]
[1769357013831,0.00422657,2914.5,2912.3,0.28121002]
[1769357014033,0.00422657,2914.5,2913.1,0.4501872]
[1769357014227,0.28157122,2915.8,2913.5,0.2783072]
[1769357014436,0.28157122,2915.8,2913.7,0.4501572]
[1769357015135,0.28157122,2915.8,2913.7,0.17185]
[1769357015340,0.28432801,2915.8,2913.7,0.17185]
[1769357015535,0.28432801,2915.8,2913.3,3.433]
[1769357015736,0.28432801,2915.8,2912.3,0.00290282]
[1769357015737,0.28157122,2914.7,2912.3,0.00290282]
[1769357015938,0.28157122,2914.2,2912.3,0.00290282]
[1769357016539,0.28157122,2914.9,2912.3,0.00290282]
[1769357017142,0.28157122,2914.8,2912.4,0.17192]
[1769357017340,0.28157122,2914.6,2912.3,0.00290282]
[1769357017737,0.28157122,2914.2,2912.3,0.00290282]
[1769357018248,23.2,2914.6,2912.3,0.28121002]
[1769357018435,0.17177,2915.1,2912.3,0.28121002]
[1769357018639,0.28157122,2914.8,2912.3,0.00290282]
[1769357018839,0.28157122,2914.8,2912.3,0.28121002]
[1769357019137,0.28157122,2914.6,2912.3,0.00290282]
[1769357019537,28.648,2915.6,2912.3,0.00290282]
[1769357019538,0.28157122,2914.1,2912.3,0.00290282]
[1769357019839,0.28157122,2912.9,2910.0,3.435]
[1769357020045,0.28157122,2912.6,2910.0,3.7133072]
[1769357020443,23.48157122,2913.4,2911.0,0.17201]
[1769357020648,0.28591184,2913.4,2911.0,0.28154691]
[1769357021245,0.28591184,2913.4,2911.2,0.17199]
[1769357021443,0.28591184,2913.4,2911.4,0.17198]
[1769357021646,0.28591184,2913.4,2911.0,0.28154691]
[1769357021846,0.00434062,2913.4,2911.7,0.2783072]
[1769357022045,0.28157122,2914.7,2912.5,0.4502172]
[1769357022346,0.28157122,2915.5,2912.8,0.1719]
[1769357022848,0.28157122,2915.5,2912.7,0.2783072]
[1769357022849,0.28157122,2915.5,2913.1,0.17188]
[1769357023042,0.28557477,2915.5,2913.1,0.17557076]
[1769357023242,0.28157122,2915.4,2913.1,0.00369076]
[1769357023443,0.17574355,2915.5,2913.1,0.00369076]
[1769357023444,0.45332122,2915.3,2913.1,0.00369076]
[1769357023643,0.28157122,2915.2,2913.1,0.00369076]
[1769357023951,0.28157122,2915.0,2913.1,0.00369076]
[1769357024149,0.28157122,2913.9,2911.3,3.435]
[1769357024352,0.28157122,2913.9,2911.4,0.17198]
[1769357024540,0.45342122,2913.7,2911.3,3.435]
[1769357024755,0.28157122,2913.2,2911.3,3.435]
[1769357025044,0.28157122,2913.1,2911.3,3.43758899]
[1769357025645,1.53702465,2912.8,2910.3,24.051]
[1769357025845,0.28157122,2912.2,2909.5,3.8853972]
[1769357026140,0.28157122,2912.2,2909.6,0.17209]
[1769357026344,0.28157122,2911.7,2909.5,3.435]
[1769357026544,0.28157122,2911.6,2909.5,3.435]
[1769357026750,0.28157122,2912.1,2909.6,0.4503872]
[1769357026945,0.28157122,2912.1,2909.6,0.2783072]
[1769357027145,0.28157122,2912.7,2910.3,0.17205]
[1769357027445,0.28157122,2912.7,2909.5,3.43922522]
[1769357027446,0.28157122,2912.7,2910.5,0.17203]
[1769357027648,0.28157122,2912.2,2909.7,0.17208]
[1769357027853,0.28157122,2912.2,2909.7,0.2783072]
[1769357028358,0.28157122,2912.2,2909.5,2.01922522]
[1769357028359,0.28157122,2912.2,2909.5,0.00422522]
[1769357028843,0.28157122,2912.2,2909.5,0.17631522]
[1769357029154,0.28157122,2912.2,2910.3,0.17205]
[1769357029743,0.28157122,2912.8,2910.4,0.4503472]
[1769357029943,0.28157122,2912.8,2910.5,0.17203]
[1769357030149,0.28157122,2912.8,2910.4,0.2783072]
[1769357030452,0.00420165,2913.2,2911.1,0.2783072]
[1769357030651,0.00420165,2913.2,2911.2,0.17199]
[1769357030950,0.00420165,2913.2,2911.6,0.17197]
[1769357031150,0.00420165,2913.2,2911.6,0.17636126]
[1769357031345,0.00420165,2913.2,2911.8,0.17196]
[1769357031739,0.00420165,2913.2,2911.6,0.28269846]
[1769357032043,0.00420165,2913.2,2911.6,0.00439126]
[1769357032250,0.00420165,2913.2,2911.6,0.28269846]
[1769357032841,0.28157122,2915.0,2911.6,0.28269846]
[1769357033046,0.28157122,2915.0,2912.7,0.1719]
[1769357033849,0.00280654,2915.0,2912.8,0.2783072]
[1769357034058,0.00280654,2915.0,2912.3,1.53702465]
[1769357034059,0.00280654,2915.0,2913.2,0.4501772]
[1769357034254,0.00280654,2915.0,2913.2,0.17187]
[1769357034455,0.28437776,2915.0,2912.6,0.2783072]
[1769357034655,0.28437776,2915.0,2912.2,0.2783072]
[1769357034851,0.00280654,2915.0,2912.7,0.2783072]
[1769357035055,0.00280654,2915.0,2913.2,0.17187]
[1769357035756,0.00280654,2915.0,2912.7,0.2783072]
[1769357035951,0.00280654,2915.0,2913.5,0.17186]
[1769357036655,0.28437776,2915.0,2912.7,0.1719]
[1769357036860,0.28157122,2914.8,2912.1,3.437]
[1769357037060,0.00280654,2915.0,2912.1,3.437]
[1769357037061,0.28157122,2914.6,2912.1,3.437]
[1769357037264,0.28157122,2914.6,2912.5,0.2783072]
[1769357037455,0.28157122,2914.6,2912.7,0.17191]
[1769357038265,0.28157122,2914.6,2912.8,0.1719]
[1769357038563,0.00280654,2915.0,2913.1,0.17188]
[1769357038762,0.00280654,2915.0,2912.4,0.17192]
[1769357038763,0.28437776,2915.0,2912.4,0.17192]
[1769357039056,0.28157122,2914.9,2912.4,0.17192]
[1769357039258,0.28157122,2914.5,2912.1,3.437]
[1769357039471,0.28157122,2914.5,2912.2,0.2783072]
[1769357039764,0.28157122,2914.5,2912.4,0.17192]
[1769357039962,0.28157122,2914.5,2912.2,0.2783072]
[1769357039963,0.00280654,2915.0,2912.2,0.2783072]
[1769357040166,0.28437776,2915.0,2913.0,0.17188]
[1769357040469,0.28437776,2915.0,2912.3,0.17193]
[1769357040663,0.28157122,2914.9,2912.3,0.17193]
[1769357040864,0.45337122,2914.5,2912.1,3.437]
[1769357041070,0.28157122,2914.4,2912.1,3.437]
[1769357041268,0.28157122,2914.4,2912.3,0.17193]
[1769357041462,0.28157122,2914.3,2912.1,3.437]
[1769357041865,0.28157122,2914.7,2912.2,0.2783072]
[1769357042363,0.00280654,2915.0,2913.3,0.17187]
[1769357043069,0.31831902,2914.9,2912.6,0.17191]
[1769357043368,0.31831902,2914.9,2912.1,3.7153072]
[1769357043369,0.31831902,2914.9,2912.7,0.1719]
[1769357043668,0.31831902,2914.9,2912.1,3.437]
[1769357043965,0.31831902,2914.8,2912.2,0.30058446]
[1769357044171,0.31831902,2914.8,2912.7,0.1719]
[1769357044765,0.00280654,2915.0,2913.4,0.17186]
[1769357045063,0.00280654,2915.0,2912.8,0.30058446]
[1769357045464,0.00280654,2915.0,2913.7,0.17185]
[1769357045669,0.00280654,2915.0,2913.7,0.17460502]
[1769357046169,0.00280654,2915.0,2913.7,0.00275502]
[1769357046363,0.32112556,2915.0,2913.7,0.00275502]
[1769357046568,0.31831902,2914.9,2912.1,3.437]
[1769357046872,0.31831902,2914.4,2912.1,3.437]
[1769357047473,0.31831902,2914.4,2912.4,0.17192]
[1769357047670,0.31831902,2914.4,2912.4,0.17491768]
[1769357048376,0.31831902,2914.4,2912.4,0.00299768]
[1769357048377,0.49012902,2914.4,2912.4,0.00299768]
[1769357048674,0.49012902,2914.3,2912.4,0.00299768]
[1769357048873,0.31831902,2914.2,2912.4,0.00299768]
[1769357050470,0.31831902,2914.9,2912.8,0.1719]
[1769357050675,0.49009902,2914.9,2912.4,0.00299768]
[1769357050871,0.49010902,2914.7,2912.4,0.00299768]
[1769357051067,0.31831902,2914.5,2912.4,0.00299768]
[1769357051679,0.31831902,2914.5,2912.4,0.17491768]
[1769357051884,24.90882465,2914.6,2912.4,0.17491768]
[1769357051885,0.31831902,2914.0,2912.4,0.00299768]
[1769357052575,0.31831902,2913.8,2912.4,0.00299768]
[1769357052782,0.31831902,2913.4,2910.6,9.18475674]
[1769357052979,0.31831902,2913.4,2911.4,0.17198]
[1769357053282,0.31831902,2913.2,2910.7,0.17202]
[1769357053681,0.31831902,2913.1,2910.9,0.17201]
[1769357053875,0.31831902,2913.1,2911.0,0.17201]
[1769357054269,0.31831902,2913.1,2911.1,0.172]
[1769357054478,0.31831902,2913.1,2911.3,0.17198]
[1769357054683,0.32428206,2913.8,2910.7,0.30390643]
[1769357054980,0.32428206,2913.6,2911.4,0.17198]
[1769357055571,0.32428206,2913.3,2911.3,0.17199]
[1769357056477,0.32428206,2914.1,2911.6,0.17197]
[1769357056882,0.32428206,2914.0,2911.6,0.17197]
[1769357057080,0.32428206,2914.0,2910.9,0.17201]
[1769357057272,0.32428206,2913.5,2910.9,0.17201]
[1769357057479,0.32428206,2913.2,2910.9,0.17201]
[1769357057980,0.32428206,2913.1,2911.1,0.172]
[1769357058375,0.32428206,2913.1,2911.2,0.17199]
[1769357058979,0.32428206,2913.7,2911.4,0.17198]
[1769357059377,0.32428206,2913.7,2911.8,0.17196]
[1769357060486,0.32428206,2913.7,2911.2,0.17199]
[1769357060785,0.32428206,2913.6,2911.2,0.17199]
[1769357060987,0.32428206,2913.6,2910.8,9.20210929]
[1769357061387,0.32428206,2913.6,2910.9,0.31793701]
[1769357062189,0.32428206,2913.6,2911.5,0.17197]
[1769357063691,0.32428206,2913.6,2911.7,0.17196]
[1769357063887,0.32428206,2914.2,2911.4,0.31793701]
[1769357064197,0.32428206,2914.9,2912.8,0.1719]
[1769357064400,0.32428206,2914.9,2912.8,0.17572988]
[1769357064582,0.32428206,2914.9,2912.9,0.17189]
[1769357064886,0.32428206,2914.9,2912.8,0.32176689]
[1769357065085,0.32428206,2914.9,2912.8,0.00382988]
[1769357068896,0.32428206,2914.9,2913.2,0.17187]
[1769357069694,0.00280654,2915.0,2913.0,0.31793701]
[1769357069888,0.00280654,2915.0,2913.7,0.17184]
[1769357071081,0.00280654,2915.0,2913.0,0.31793701]
[1769357071082,0.32428206,2914.9,2913.0,8.87120594]
[1769357071497,0.00280654,2915.0,2913.0,9.18914295]
[1769357071896,0.3270886,2915.0,2912.9,2.016]
[1769357072497,0.3270886,2915.0,2913.3,0.17187]
[1769357072992,0.3270886,2915.0,2912.9,2.016]
[1769357073192,0.3270886,2915.0,2912.8,0.00382988]
[1769357073397,0.3270886,2915.0,2912.8,0.17571988]
[1769357073898,0.3270886,2915.0,2912.9,0.17189]
[1769357074402,0.3270886,2915.0,2912.9,0.31910316]
[1769357074891,0.3270886,2915.0,2912.8,0.00382988]
[1769357076000,0.3270886,2915.0,2913.0,0.17189]
[1769357076201,0.3270886,2915.0,2913.1,0.17188]
[1769357076695,0.3270886,2915.0,2912.8,0.00382988]
[1769357076696,0.3270886,2915.0,2913.2,0.17188]
[1769357078702,0.3270886,2915.0,2913.3,0.17187]
[1769357078896,0.3270886,2915.0,2913.4,0.17186]
[1769357079305,0.00280654,2915.0,2912.9,0.31910316]
[1769357079594,0.3306012,2915.0,2913.0,0.17189]
[1769357080503,0.3306012,2915.0,2912.8,0.00382988]
[1769357080504,0.32779466,2914.9,2912.8,0.00382988]
[1769357080694,0.32779466,2914.5,2912.8,0.00382988]
[1769357081504,23.2,2914.9,2912.8,0.00382988]
[1769357081505,0.32779466,2914.2,2912.8,0.00382988]
[1769357082001,0.32779466,2914.7,2912.8,0.00382988]
[1769357082197,0.32779466,2914.7,2913.2,0.17188]
[1769357084395,0.00280654,2915.0,2913.3,0.31910316]
[1769357084598,0.00280654,2915.0,2913.5,0.31910316]
[1769357084794,0.32779466,2916.4,2914.2,0.17182]
[1769357085000,0.32779466,2916.4,2914.4,0.1718]
[1769357085302,0.32779466,2916.4,2913.7,0.31910316]
[1769357085303,0.32779466,2916.4,2914.5,0.1718]
[1769357085900,0.33079321,2916.4,2913.7,0.31910316]
[1769357086095,0.33079321,2916.4,2914.1,0.17182]
[1769357086611,0.33079321,2916.4,2913.7,0.31910316]
[1769357087011,0.33079321,2916.4,2914.4,0.1718]
[1769357087502,0.33079321,2916.4,2914.5,0.1718]
[1769357087701,0.33079321,2916.4,2914.6,0.17179]
[1769357087909,0.00299855,2916.4,2915.3,0.17175]
[1769357088207,0.00299855,2916.4,2915.3,0.17571102]
[1769357090205,0.00299855,2916.4,2915.4,0.17175]
[1769357090714,0.32779466,2917.3,2915.6,0.17173]
[1769357091306,0.32779466,2917.3,2915.3,0.00396102]
[1769357091605,0.32779466,2917.2,2915.3,0.00396102]
[1769357093611,0.00291215,2917.3,2915.3,0.32306418]
[1769357093810,0.00291215,2917.3,2916.2,0.1717]
[1769357094208,0.00291215,2917.3,2916.2,0.49080316]
[1769357094611,0.32779466,2918.4,2916.5,0.17168]
[1769357095616,0.33139537,2918.4,2916.5,0.17168]
[1769357095916,0.33139537,2918.4,2915.8,0.17172]
[1769357096723,0.49938466,2918.1,2915.6,5.448]
[1769357097026,0.32779466,2918.0,2915.6,5.448]
[1769357097525,0.32779466,2918.0,2915.7,0.17173]
[1769357097725,0.32779466,2918.0,2915.7,0.31910316]
[1769357097914,0.00360071,2918.4,2915.7,0.31910316]
[1769357098119,0.33139537,2918.4,2915.7,0.31910316]
[1769357098519,0.32779466,2918.0,2915.6,5.61973]
[1769357098719,0.32779466,2917.9,2915.6,5.61973]
[1769357099921,0.49939466,2917.9,2915.6,5.61973]
[1769357100227,0.32779466,2917.8,2915.6,5.61973]
[1769357100524,0.32779466,2917.8,2915.6,5.448]
[1769357100727,0.32779466,2917.8,2915.8,0.17172]
[1769357101515,0.32779466,2917.8,2915.6,5.448]
[1769357101727,0.32779466,2917.3,2915.1,0.17176]
[1769357102131,0.32779466,2917.0,2915.1,0.17176]
[1769357102621,0.49944466,2917.0,2914.6,5.447]
[1769357102817,0.32779466,2916.5,2914.6,3.433]
[1769357103021,0.32377568,2916.1,2913.7,0.17185]
[1769357103823,0.32377568,2916.0,2913.7,0.0043873]
[1769357105233,0.32377568,2915.6,2913.7,0.0043873]
[1769357105929,0.32377568,2915.4,2913.7,0.0043873]
[1769357107224,0.32377568,2915.2,2913.7,0.0043873]
[1769357107420,0.32377568,2915.2,2913.1,3.433]
[1769357107622,0.32377568,2914.7,2913.1,3.433]
[1769357108532,0.32377568,2914.5,2911.9,2.014]
[1769357108920,0.1718,2914.6,2912.0,0.34504431]
[1769357109129,0.32815967,2916.1,2913.8,0.34504431]
[1769357109424,0.32815967,2916.1,2914.3,0.17181]
[1769357109722,0.32815967,2916.1,2914.4,0.1718]
[1769357110438,0.32815967,2916.1,2914.3,0.00291401]
[1769357110633,0.49549568,2915.9,2914.3,0.00291401]
[1769357110829,0.32377568,2915.8,2914.3,0.00291401]
[1769357114026,0.00438399,2916.1,2914.4,0.17181]
[1769357114528,0.32815967,2916.1,2914.6,0.17179]
[1769357114728,0.00438399,2916.1,2914.3,0.34582939]
[1769357114928,0.32932304,2917.3,2915.3,0.17175]
[1769357115130,0.32932304,2917.2,2914.6,0.17179]
[1769357115329,0.32932304,2917.2,2915.1,0.17176]
[1769357115830,0.33224257,2917.2,2914.4,0.34291538]
[1769357117739,0.33224257,2917.2,2915.1,0.17176]
[1769357118635,0.00291953,2917.2,2915.5,0.17174]
[1769357118833,0.00291953,2917.2,2915.6,0.17173]
[1769357119036,0.00291953,2917.2,2915.7,0.17173]
[1769357119528,0.00291953,2917.2,2915.8,0.17172]
[1769357119735,0.00291953,2917.2,2915.9,0.17172]
[1769357120134,0.00291953,2917.2,2915.7,0.34291538]
[1769357120135,0.00291953,2917.2,2916.1,0.1717]
[1769357120335,5.448,2918.3,2916.2,0.51461538]
[1769357120535,0.32932304,2918.4,2916.5,0.17168]
[1769357120742,0.32932304,2918.4,2915.7,0.17173]
[1769357121044,0.32932304,2918.4,2916.2,0.1717]
[1769357121339,0.33259806,2918.4,2916.2,0.17464362]
[1769357122542,0.33259806,2918.4,2916.2,0.517559]
[1769357123937,0.33259806,2918.4,2916.2,0.00294362]
[1769357124140,0.32932304,2918.3,2916.2,0.00294362]
[1769357124732,0.32932304,2918.2,2916.2,0.00294362]
[1769357124933,0.32932304,2918.0,2916.2,0.00294362]
[1769357125546,0.32932304,2917.9,2916.2,0.00294362]
[1769357127245,0.00327502,2918.4,2914.8,5.448]
[1769357127246,0.32932304,2917.0,2914.8,5.448]
[1769357127540,0.32932304,2917.0,2914.8,5.61978]
[1769357128042,0.17168,2916.6,2914.1,0.17182]
[1769357128346,0.32932304,2916.2,2914.1,0.17505086]
[1769357128543,0.32932304,2916.2,2914.7,0.17179]
[1769357128544,0.00249859,2916.2,2914.7,0.17179]
[1769357128845,0.33182163,2916.2,2914.7,0.17179]
[1769357129142,0.00249859,2916.2,2914.8,0.17178]
[1769357129547,0.00249859,2916.2,2914.7,0.34291538]
[1769357129734,0.00249859,2916.2,2915.1,1.15182409]
[1769357131545,0.00249859,2916.2,2915.0,0.17177]
[1769357131744,0.00249859,2916.2,2914.1,8.8744368]
[1769357131745,0.33182163,2916.2,2914.1,8.8744368]
[1769357132043,1.15182409,2916.0,2914.1,0.00323086]
[1769357132233,0.50105304,2915.7,2914.1,0.00323086]
[1769357132436,1.15182409,2916.0,2914.1,0.00323086]
[1769357132437,0.32932304,2915.3,2914.1,0.00323086]
[1769357132645,0.32932304,2915.3,2913.1,0.17188]
[1769357132940,0.32932304,2915.3,2913.0,5.446]
[1769357132941,0.32932304,2915.3,2913.3,0.52728385]
[1769357133142,0.32932304,2915.3,2913.4,1.32368409]
[1769357133546,0.32932304,2915.3,2913.4,0.17563731]
[1769357134440,0.35178199,2916.0,2913.6,0.17185]
[1769357134751,0.35178199,2915.9,2913.6,0.17185]
[1769357135943,0.35178199,2915.8,2913.6,0.17185]
[1769357136144,0.35178199,2915.7,2913.4,0.00377731]
[1769357136345,0.52351199,2915.7,2913.4,0.00377731]
[1769357136541,0.35178199,2915.4,2913.4,0.00377731]
[1769357136844,23.20249859,2916.2,2913.4,0.00377731]
[1769357136845,0.35178199,2915.0,2913.4,0.00377731]
[1769357138339,0.35178199,2915.7,2913.4,0.00377731]
[1769357138544,0.35178199,2915.7,2913.4,0.17563731]
[1769357138743,0.35178199,2915.7,2913.5,0.17186]
[1769357139351,0.35178199,2915.2,2913.4,0.00377731]
[1769357139555,0.35178199,2914.7,2913.4,0.00377731]
[1769357141847,1.53714075,2916.4,2913.4,0.00377731]
[1769357141848,0.35178199,2915.3,2913.4,0.17563731]
[1769357143046,0.35178199,2915.9,2913.5,0.52727385]
[1769357143253,0.35178199,2915.2,2913.4,0.00377731]
[1769357143447,0.52354199,2915.2,2913.4,0.00377731]
[1769357143648,0.35178199,2915.1,2913.4,0.00377731]
[1769357148150,0.35178199,2914.6,2912.4,0.17192]
[1769357148355,0.35178199,2914.5,2912.4,0.17192]
[1769357148551,0.35178199,2914.4,2912.4,0.17192]
[1769357148748,0.35178199,2914.2,2911.7,0.17196]
[1769357148949,0.35178199,2913.9,2911.8,0.17195]
[1769357149348,0.35460043,2913.9,2911.8,0.17510024]
[1769357150956,0.35460043,2913.9,2912.0,0.17195]
[1769357151448,0.00281844,2913.9,2911.8,0.35856409]
[1769357151657,0.00281844,2913.9,2912.2,0.35541385]
[1769357152154,0.00281844,2913.9,2912.7,0.35541385]
[1769357152352,0.00281844,2913.9,2913.0,0.17189]
[1769357152750,0.35178199,2915.0,2913.0,0.17189]
[1769357152953,0.35178199,2915.0,2913.1,0.17188]
[1769357153746,0.35585542,2915.0,2912.4,0.17192]
[1769357153945,0.35585542,2915.0,2912.3,2.015]
[1769357153946,0.52356199,2914.9,2912.3,2.015]
[1769357154150,0.35178199,2914.8,2912.6,0.17191]
[1769357154750,0.35178199,2914.7,2912.6,0.17191]
[1769357156859,0.52357199,2914.7,2912.6,0.17191]
[1769357157155,0.35178199,2914.6,2912.6,0.17191]
[1769357158260,0.35178199,2914.1,2912.0,0.17195]
[1769357159548,0.35178199,2914.1,2912.1,0.17194]
[1769357160556,0.35178199,2914.1,2911.8,0.35856409]
[1769357160758,0.35178199,2914.1,2912.5,0.17192]
[1769357161559,2.01907343,2915.0,2912.5,0.17192]
[1769357161560,0.35178199,2914.7,2912.6,1.32517559]
[1769357161760,0.35178199,2914.7,2912.8,0.1719]
[1769357162856,0.35178199,2914.7,2913.1,0.17188]
[1769357163061,0.00407343,2915.0,2913.2,0.33913823]
[1769357163256,0.00407343,2915.0,2913.5,0.17186]
[1769357163565,0.3557009,2915.9,2913.9,0.51096823]
[1769357163763,0.3557009,2915.9,2914.0,0.51096823]
[1769357164062,0.3557009,2915.9,2914.1,0.17182]
[1769357164262,0.3557009,2916.6,2914.1,0.33913823]
[1769357164666,0.35932237,2916.6,2914.1,0.34287799]
[1769357165067,0.35932237,2916.6,2914.1,0.00373976]
[1769357165260,0.3557009,2916.0,2914.1,0.00373976]
[1769357165564,0.3557009,2915.7,2914.1,0.00373976]
[1769357166165,0.17172,2915.8,2914.1,0.00373976]
[1769357166166,0.3557009,2915.5,2914.1,0.00373976]
[1769357166660,0.3557009,2915.3,2913.3,3.436]
[1769357167666,0.3557009,2915.3,2913.3,3.43973703]
[1769357168469,3.436,2915.5,2913.3,0.00373703]
[1769357168470,0.3557009,2915.0,2913.3,0.00373703]
[1769357168768,3.436,2915.5,2912.1,8.87120594]
[1769357168769,0.3557009,2914.1,2912.1,8.87120594]
[1769357168965,0.3557009,2913.8,2911.8,3.436]
[1769357169474,0.3557009,2913.6,2911.5,11.942008]
[1769357169670,0.3557009,2913.4,2911.5,0.00435611]
[1769357169975,0.3557009,2912.9,2911.5,0.00435611]
[1769357170372,0.3557009,2912.7,2910.5,3.436]
[1769357171264,0.3557009,2912.7,2910.5,3.60803]
[1769357171460,0.3557009,2912.7,2910.5,3.61074527]
[1769357171873,0.17191,2912.6,2910.5,3.43871527]
[1769357172061,0.3557009,2912.4,2910.5,0.00271527]
[1769357173775,0.3557009,2912.4,2910.7,0.17202]
[1769357173966,0.3557009,2913.1,2911.0,0.172]
[1769357174166,0.35910763,2913.6,2911.2,0.33913823]
[1769357174370,0.35910763,2913.6,2911.5,0.17198]
[1769357174773,0.35674267,2913.4,2910.7,3.60902]
[1769357174972,0.52860267,2913.4,2910.7,3.60902]
[1769357175274,0.00340673,2913.6,2910.7,3.60902]
[1769357175275,0.35674267,2913.0,2910.7,3.60902]
[1769357175467,0.35674267,2912.9,2910.7,3.437]
[1769357175667,0.52863267,2912.9,2910.7,3.437]
[1769357175868,0.35674267,2912.8,2910.7,3.437]
[1769357176165,0.52865267,2912.6,2910.5,0.00271527]
[1769357176375,0.35674267,2912.4,2910.5,0.00271527]
[1769357176574,0.35674267,2911.8,2910.5,0.00271527]
[1769357176772,0.35674267,2911.8,2909.6,0.17209]
[1769357177373,0.35674267,2911.5,2909.3,3.437]